Cogmind - Beta 9.6 @@@ ROGUE MODE // 2020.07.17 @ 18:56:04 // Winter2019/RPGLIKE Player: Hermelin Result: Destroyed by exploding Nuclear Reactor Performance ------------- Evolutions (4) 2000 Regions Visited (16) 3200 Robots Destroyed (293) 1465 Value Destroyed (10189) 10189 Prototype IDs (53) 1060 Alien Tech Used (0) 0 Bonus (7912) 7912 TOTAL SCORE: 25826 Bonus ------- Triggered High Security 500 High Alert Combat Kills 5526 Follower Combat Kills 611 Entered Garrisons 200 Used RIF Installer 500 Aligned with FarCom 300 Met Data Miner 300 Friendly Fire -25 Cogmind --------- Core Integrity 0/750 Matter 341/400 Energy 663/850 System Corruption 13% Temperature Cool (58) Movement Treading (180) Ox1 Location -6/Factory Parts ------- > --- POWER (2) -------- Antimatter Reactor Antimatter Reactor > --- PROPULSION (4) --- Light Treads Heavy Treads Improved VTOL Module > --- UTILITY (11) ----- Improved Cryofiber Web Coolant Injector Compact Battery Advanced Signal Interpreter Nanoactuators Damper Plating Improved Shield Generator Hacking Suite System Shield > --- WEAPON (5) ------- Beamcaster Cooled Particle Cannon Cooled Particle Cannon Spear Spear > --- INVENTORY (3) ---- Gravmag System Gravmag System Makeshift Sensor Array Peak State ------------ > --- POWER ------------ Antimatter Reactor Antimatter Reactor > --- PROPULSION ------- Heavy Treads Gravmag System Gravmag System > --- UTILITY ---------- Coolant Injector Compact Battery Advanced Signal Interpreter Nanoactuators Damper Plating Improved Shield Generator Hacking Suite System Shield Corruption Screen > --- WEAPON ----------- Beamcaster Master Tearclaws Master Tearclaws > --- INVENTORY -------- Improved Cooling System Makeshift Sensor Array Makeshift Cloaking Device [Rating: 120] Favorites ----------- Power Light Deuterium Engine Engine Light Deuterium Engine Power Core Light Nuclear Core Reactor Antimatter Reactor Propulsion Improved Hover Unit Treads Heavy Treads Wheel Wheel Hover Unit Improved Hover Unit Flight Unit Flight Unit Utility Hacking Suite Device Improved Heat Sink Storage Superbattery Processor Advanced Signal Interpreter Hackware Hacking Suite Protection Improved Medium Armor Plating Weapon XL Autogun Array Energy Gun Beamcaster Energy Cannon Cooled Particle Cannon Ballistic Gun XL Autogun Array Launcher Rocket Launcher Special Weapon Remote Datajack Slashing Weapon Master Tearclaws Piercing Weapon Spear Build | -11 -10 -10 -9 -9 -9 -8 -8 -8 -7 -7 -7 -7 -6 -6 -6 -6 ------- Run | Scr Mat Min Mat Min Exi Min Mat Gar Fac Low Low Dat Pro Fac Was Fac Slots Evolved 18 | 3 . 2 6 1 . 1 2 . 2 . . . . 1 . . Power 1 | . . . 1 . . . . . . . . . . . . . Propulsion 3 | 1 . . 2 . . . . . . . . . . . . . Utility 10 | 1 . 1 2 1 . 1 2 . 1 . . . . 1 . . Weapon 4 | 1 . 1 1 . . . . . 1 . . . . . . . Parts Attached 111 | 5 6 6 17 5 4 4 14 . 11 1 7 . 6 . 11 14 Power 16 | 1 1 . 1 1 . 2 2 . 2 . 1 . . . 3 2 Engine 7 | 1 . . 1 . . . 2 . 1 . . . . . 1 1 Core 6 | . 1 . . 1 . 2 . . 1 . 1 . . . . . Reactor 3 | . . . . . . . . . . . . . . . 2 1 Propulsion 22 | 2 2 2 7 . . . 2 . 4 . . . . . 1 2 Treads 2 | . . . . . . . . . . . . . . . 1 1 Leg . | . . . . . . . . . . . . . . . . . Wheel 2 | 2 . . . . . . . . . . . . . . . . Hover 12 | . . . 6 . . . 2 . 4 . . . . . . . Flight 6 | . 2 2 1 . . . . . . . . . . . . 1 Utility 52 | . 3 3 5 2 3 2 10 . 4 1 6 . 4 . 6 3 Device 25 | . 1 2 . 2 2 1 3 . 2 . 6 . 2 . 1 3 Storage 5 | . . . . . 1 . . . . 1 . . 1 . 2 . Processor 6 | . 2 . 2 . . 1 . . 1 . . . . . . . Hackware 2 | . . 1 . . . . 1 . . . . . . . . . Protection 14 | . . . 3 . . . 6 . 1 . . . 1 . 3 . Artifact . | . . . . . . . . . . . . . . . . . Weapon 21 | 2 . 1 4 2 1 . . . 1 . . . 2 . 1 7 Energy Gun 9 | 1 . . 3 1 . . . . . . . . . . 1 3 Energy Cannon 2 | . . . . . . . . . . . . . . . . 2 Ballistic Gun 3 | 1 . 1 . . 1 . . . . . . . . . . . Ballistic Cannon . | . . . . . . . . . . . . . . . . . Launcher 1 | . . . 1 . . . . . . . . . . . . . Special Weapon 1 | . . . . . . . . . 1 . . . . . . . Impact Weapon . | . . . . . . . . . . . . . . . . . Slashing Weapon 3 | . . . . 1 . . . . . . . . 2 . . . Piercing Weapon 2 | . . . . . . . . . . . . . . . . 2 Special Melee Weapon . | . . . . . . . . . . . . . . . . . Unidentified Prototypes 8 | . . . 2 . . . . . 1 . 1 . . . . 4 Parts Lost 5 | . . . . . . . . . . . . . . . 5 . Power 1 | . . . . . . . . . . . . . . . 1 . Propulsion 1 | . . . . . . . . . . . . . . . 1 . Utility 2 | . . . . . . . . . . . . . . . 2 . Weapon 1 | . . . . . . . . . . . . . . . 1 . Highest Loss Streak 4 | . . . . . . . . . . . . . . . 4 . Average Slot Usage (%) 87 | . 94 99 97 100 91 77 82 84 84 85 84 80 86 86 76 79 Engine 4 | . 5 . 1 . . . 8 10 9 9 7 4 4 4 1 . Core 4 | . 8 11 7 11 12 11 1 . . . 1 4 4 4 . . Reactor 1 | . . . . . . . . . . . . . . . 4 9 Hover 16 | . . . 13 25 25 23 21 21 19 19 19 19 19 18 11 5 Flight 3 | . 26 22 11 . . . . . . . . . . . . . Device 14 | . 1 9 7 10 11 11 19 21 19 19 18 19 20 18 15 17 Storage 3 | . . . . . 2 5 5 5 4 4 4 4 1 4 4 4 Processor 9 | . 22 12 14 12 9 5 5 5 9 9 9 9 9 9 9 4 Hackware 7 | . . 10 7 6 6 5 7 10 9 9 9 9 9 9 9 9 Protection 4 | . . . 6 6 6 5 6 5 4 4 4 4 5 4 3 4 Energy Gun 4 | . 14 11 14 12 6 . . . . . . . . . 2 4 Ballistic Gun 5 | . 14 21 9 3 2 5 5 5 4 4 3 . . . . . Slashing Weapon 1 | . . . . 2 3 . . . . . . . 5 9 9 6 Naked Turns . | . . . . . . . . . . . . . . . . . Heaviest Build 116 | 6 8 11 29 32 37 38 41 37 46 46 52 37 60 54 112 116 Greatest Support 100 | 25 25 13 37 37 37 42 43 43 54 54 54 54 54 54 80 100 Greatest Overweight (x) 3 | . . . 1 . . . . . 1 . . . 1 . 3 1 Average Overweight (x) . | . . . . . . . . . . . . . . . . . Largest Inventory Capacity 3 | 2 2 2 2 2 3 3 3 3 3 3 3 3 3 3 3 3 Average Capacity 2 | 1 2 2 2 2 2 3 3 3 3 3 3 3 3 3 3 3 Most Carried 3 | 2 2 2 2 2 3 3 3 3 3 3 3 3 3 3 3 3 Average Carried 2 | . 1 1 1 2 2 3 2 3 2 3 2 3 2 3 2 2 Final Capacity 3 | 2 2 2 2 2 3 3 3 3 3 3 3 3 3 3 3 3 Final Carried 3 | 1 2 1 2 2 3 3 3 3 3 3 3 3 3 3 3 3 Class Distribution -------------------- 36% | Scavenger-Gunner 30% | Scavenger-Tank 13% | Scavenger-Mutant 13% | Scavenger-Gladiator 5% | Mutant Dominant Class ---------------- Mutant | -10/Materials Scavenger-Gunner | -10/Mines Scavenger-Gunner | -9/Materials Scavenger-Mutant | -9/Mines Scavenger-Mutant | -9/Exiles Scavenger-Tank | -8/Mines Scavenger-Tank | -8/Materials Scavenger-Tank | -8/Garrison Scavenger-Gunner | -7/Factory Scavenger-Gunner | -7/Lower Caves Scavenger-Gunner | -7/Lower Caves Scavenger-Mutant | -7/Data Miner Scavenger-Gladiator | -6/Proximity Caves Scavenger-Gladiator | -6/Factory Scavenger-Gladiator | -6/Waste Scavenger-Gladiator | -6/Factory Resources | -11 -10 -10 -9 -9 -9 -8 -8 -8 -7 -7 -7 -7 -6 -6 -6 -6 ----------- Run | Scr Mat Min Mat Min Exi Min Mat Gar Fac Low Low Dat Pro Fac Was Fac Matter Collected 8271 | 250 99 67 271 119 . 635 2280 1005 2315 246 649 . 90 . 110 135 Remotely 5841 | . . . . . . . 1571 1005 2315 246 624 . 80 . . . Salvage Created 11489 | . 418 88 1189 379 . 804 2720 1138 3322 376 486 . . . 288 281 Parts 666 | . 27 11 77 25 . 39 167 64 193 26 21 . . . 4 12 Haulers Intercepted 11 | . . . 4 . . . 6 . 1 . . . . . . . Recyclers Shooed 5 | . 1 . 1 1 . . 1 . 1 . . . . . . . Parts Field Recycled . | . . . . . . . . . . . . . . . . . Retrieved Matter . | . . . . . . . . . . . . . . . . . Parts Self-Destructed 41 | . . . . . . . . . . 16 15 . 10 . . . Prevented . | . . . . . . . . . . . . . . . . . Kills | -11 -10 -10 -9 -9 -9 -8 -8 -8 -7 -7 -7 -7 -6 -6 -6 -6 ------- Run | Scr Mat Min Mat Min Exi Min Mat Gar Fac Low Low Dat Pro Fac Was Fac Combat Hostiles Destroyed 232 | . 11 5 19 12 . 17 47 32 62 10 9 . . . 1 7 Guns 219 | . 10 5 18 4 . 17 47 32 62 10 9 . . . 1 4 Cannons 2 | . . . . . . . . . . . . . . . . 2 AOE 10 | . 1 . 1 8 . . . . . . . . . . . . Classes Destroyed 20 | . 3 . 2 2 . 4 2 . 3 1 2 . . . 1 . Worker 11 | . . . . . . 1 4 . 6 . . . . . . . Builder 11 | . . . . . . . 4 . 7 . . . . . . . Tunneler 3 | . . . . . . 1 . . 2 . . . . . . . Hauler 11 | . . . 4 . . . 6 . 1 . . . . . . . Recycler 5 | . . . . 2 . . . . 3 . . . . . . . Mechanic 2 | . . . . . . . . . 2 . . . . . . . Operator 5 | . . . . . . . 4 . 1 . . . . . . . Watcher 13 | . 2 . 3 . . . 5 . 3 . . . . . . . Swarmer 50 | . 6 3 2 7 . 8 . 14 3 4 . . . . . 3 Grunt 115 | . 5 2 9 4 . 6 32 12 37 2 3 . . . . 3 Brawler 10 | . . . . . . 2 3 . 5 . . . . . . . Duelist 5 | . . . . 1 . . . 1 1 1 1 . . . . . Protector 3 | . . . . . . . . . 3 . . . . . . . Sentry 29 | . . . 8 . . . 9 5 6 . . . . . . 1 Hunter 7 | . . . . . . 1 3 . 3 . . . . . . . Programmer 4 | . . . . . . . . . 4 . . . . . . . Behemoth 1 | . . . . . . . . . . . 1 . . . . . Compactor 1 | . . . . . . . . . . . . . . . 1 . Thief 2 | . . . . . . . . . . . 2 . . . . . Master Thief 4 | . . . . . . . . . . 3 1 . . . . . Mutant 1 | . . . . . . . . . . . 1 . . . . . Best Kill Streak 27 | . 6 3 5 4 . 4 16 10 27 4 4 . . . 1 4 Combat Bots Only 14 | . 6 3 5 4 . 4 8 10 14 4 4 . . . 1 4 Max Kills in Single Turn 9 | . 1 1 2 4 . 2 3 1 9 2 1 . . . 1 1 Gunslinging 1 | . . . 1 . . . . . . . . . . . . . Exploded 4 | . 1 . 1 4 . . . . . . . . . . . . Melee . | . . . . . . . . . . . . . . . . . Uniques/NPCs Destroyed . | . . . . . . . . . . . . . . . . . Combat | -11 -10 -10 -9 -9 -9 -8 -8 -8 -7 -7 -7 -7 -6 -6 -6 -6 -------- Run | Scr Mat Min Mat Min Exi Min Mat Gar Fac Low Low Dat Pro Fac Was Fac Damage Taken 5041 | . 394 99 659 232 . 219 398 248 1057 55 68 . 323 115 322 852 Core 3457 | . 327 80 483 163 . 145 292 183 710 38 51 . 225 76 239 445 Absorbed by Shields 1255 | . . . . . . 85 150 98 408 24 30 . 58 40 37 325 Redirected to Core 3067 | . 220 61 434 132 . 135 248 146 661 38 51 . 225 62 239 415 Core Remaining (%) 88 | 100 . 97 . . . 71 . 100 . . . . 73 . . . Volleys Fired 620 | . 40 12 73 19 . 37 136 67 147 25 33 . . . 4 27 Largest 3 | . 2 3 3 3 . 1 1 1 1 1 1 . . . 1 3 Hottest 135 | . 60 80 121 121 . 60 60 60 60 60 60 . . . 75 135 Shots Fired 833 | . 80 30 186 47 . 37 136 67 147 25 33 . . . 4 41 Gun 811 | . 80 30 185 42 . 37 136 67 147 25 31 . . . 4 27 Cannon 14 | . . . . . . . . . . . . . . . . 14 Launcher 6 | . . . 1 5 . . . . . . . . . . . . Special 2 | . . . . . . . . . . . 2 . . . . . Kinetic 593 | . 40 18 78 14 . 37 136 67 147 25 31 . . . . . Thermal 111 | . . . 52 14 . . . . . . . . . . 4 41 Explosive 6 | . . . 1 5 . . . . . . . . . . . . Electromagnetic 121 | . 40 12 55 14 . . . . . . . . . . . . Robot Hit Streak 23 | . 17 5 23 21 . 13 22 20 19 11 15 . . . 3 6 Robot Miss Streak 6 | . 5 6 4 2 . 5 6 5 5 6 4 . . . 1 2 Penetration Max . | . . . . . . . . . . . . . . . . . Secondary Targets 8 | . 3 2 2 1 . . . . . . . . . . . . Max Gunslinging Chain 1 | . 1 1 1 1 . . . . . . . . . . . . Shots Hit Robots 717 | . 45 17 128 37 . 37 128 66 143 23 32 . 8 4 8 41 Core Hits 504 | . 19 9 52 23 . 24 107 56 156 17 22 . 1 1 2 15 Critical Hits 1 | . 1 . . . . . . . . . . . . . . . Critical Kills . | . . . . . . . . . . . . . . . . . Critical Parts Destroyed 1 | . 1 . . . . . . . . . . . . . . . Melee Attacks 46 | . . . . 3 . . . . . . . . 10 7 6 20 Impact . | . . . . . . . . . . . . . . . . . Slashing 46 | . . . . 3 . . . . . . . . 10 7 6 20 Piercing . | . . . . . . . . . . . . . . . . . Sneak Attacks . | . . . . . . . . . . . . . . . . . Combat Hostiles . | . . . . . . . . . . . . . . . . . Follow-up Attacks 3 | . . . . . . . . . . . . . . . . 3 Damage Inflicted 30104 | . 577 184 1851 1275 . 1532 6324 3452 11052 1274 1749 . 7 20 94 713 Guns 26379 | . 536 184 1725 363 . 1532 6252 3452 8820 1274 1738 . . . 87 416 Cannons 239 | . . . . . . . . . . . . . . . . 239 Explosions 3061 | . 41 . 126 590 . . 72 . 2232 . . . . . . . Melee 414 | . . . . 322 . . . . . . . . 7 20 7 58 Ramming 11 | . . . . . . . . . . . 11 . . . . . Kinetic 23656 | . 152 84 299 53 . 1532 6252 3452 8820 1274 1738 . . . . . Thermal 1825 | . 41 . 700 146 . . . . 196 . . . . . 87 655 Explosive 2646 | . . . 68 528 . . 72 . 1978 . . . . . . . Electromagnetic 1552 | . 384 100 784 226 . . . . 58 . . . . . . . Impact . | . . . . . . . . . . . . . . . . . Slashing 414 | . . . . 322 . . . . . . . . 7 20 7 58 Piercing . | . . . . . . . . . . . . . . . . . Highest Corruption 13 | . . . 1 1 1 1 . . 1 1 1 1 1 . 8 13 Average Corruption 3 | . . . 1 1 1 1 . . 1 1 1 1 1 . 8 10 Corruption Purged . | . . . . . . . . . . . . . . . . . Effects 51 | . . . 1 6 2 2 . . 2 1 4 1 2 . 6 24 Message Errors 14 | . . . 1 3 . 2 . . . . 1 1 1 . 1 4 Matter Fused 6 | . . . . . . . . . . . . . . . 1 5 Heat Flow Errors 6 | . . . . . . . . . . . . . . . 3 3 Energy Discharges 5 | . . . . 1 . . . . . . . . . . 1 3 Data Loss (minor) 5 | . . . . . 2 . . . 1 . 1 . . . . 1 Alerts 1 | . . . . . . . . . . . . . . . . 1 Misdirections 4 | . . . . . . . . . . . . . . . . 4 Targeting Errors 10 | . . . . 2 . . . . 1 1 2 . 1 . . 3 Overload Shots . | . . . . . . . . . . . . . . . . . Overflow Damage 623 | . . . . 87 . . 18 . 518 . . . . . . . Projectiles . | . . . . . . . . . . . . . . . . . Explosions 542 | . . . . 6 . . 18 . 518 . . . . . . . Melee 81 | . . . . 81 . . . . . . . . . . . . Knockbacks . | . . . . . . . . . . . . . . . . . Impact . | . . . . . . . . . . . . . . . . . Kinetic . | . . . . . . . . . . . . . . . . . Secondary . | . . . . . . . . . . . . . . . . . Self-Inflicted Damage 107 | . . . . 102 . . . . . . 5 . . . . . Shots 3 | . . . . 3 . . . . . . . . . . . . Rammed 1 | . . . . . . . . . . . 1 . . . . . Targets Rammed 1 | . . . . . . . . . . . 1 . . . . . Kicked . | . . . . . . . . . . . . . . . . . Crushed . | . . . . . . . . . . . . . . . . . Highest Temperature 223 | . 171 104 165 135 . 190 192 147 174 100 92 . . . 186 223 Average Temperature 56 | . 51 40 36 47 . 81 49 52 59 34 36 . . . 76 103 Received Heat Transfer 1313 | . 123 39 315 42 . 72 150 66 290 . 26 . 18 48 . 124 Siege Activations . | . . . . . . . . . . . . . . . . . Robots Corrupted . | . . . . . . . . . . . . . . . . . Combat Hostiles . | . . . . . . . . . . . . . . . . . Parts Fried 8 | . 3 . 5 . . . . . . . . . . . . . Impact Corruptions . | . . . . . . . . . . . . . . . . . Robots Melted 1 | . . . . . . . . . . . . . . . . 1 Combat Hostiles 1 | . . . . . . . . . . . . . . . . 1 Parts Melted 1 | . . . 1 . . . . . . . . . . . . . Heat Transferred 3125 | . . . 1519 285 . . . . 100 . . . . . 148 1073 Parts Sabotaged . | . . . . . . . . . . . . . . . . . Parts Stolen 4 | . . . . . . . . . . 1 2 . 1 . . . Parts Stripped . | . . . . . . . . . . . . . . . . . Power Chain Reactions 4 | . 1 . 1 2 . . . . . . . . . . . . Missiles Intercepted . | . . . . . . . . . . . . . . . . . Alert | -11 -10 -10 -9 -9 -9 -8 -8 -8 -7 -7 -7 -7 -6 -6 -6 -6 ------- Run | Scr Mat Min Mat Min Exi Min Mat Gar Fac Low Low Dat Pro Fac Was Fac Peak Influence 3001 | . 457 288 378 385 . 527 1591 1862 3001 . . . . 228 79 100 Average Influence 646 | . 264 259 203 230 . 349 971 1541 1833 . . . . 161 25 32 Maximum Alert Level 5 | . 2 1 1 1 . 2 4 5 5 . . . . 1 . . Low Security (%) 34 | 100 28 1 46 33 . 27 . . . . . . . 72 100 100 Level 1 25 | . 57 98 53 66 . 24 11 . . . . . . 27 . . Level 2 6 | . 13 . . . . 48 17 . . . . . . . . . Level 3 9 | . . . . . . . 25 9 31 . . . . . . . Level 4 10 | . . . . . . . 45 30 1 . . . . . . . Level 5 5 | . . . . . . . . 60 1 . . . . . . . High Security 9 | . . . . . . . . . 64 . . . . . . . Max Security . | . . . . . . . . . . . . . . . . . Squads Dispatched 41 | . 3 . 2 . . . 13 . 20 . . . . . . 3 Investigation 11 | . 3 . 2 . . . 3 . 1 . . . . . . 2 Extermination 2 | . . . . . . . . . 1 . . . . . . 1 Reinforcement 6 | . . . . . . . 5 . 1 . . . . . . . Assault 15 | . . . . . . . 1 . 14 . . . . . . . Garrison 7 | . . . . . . . 4 . 3 . . . . . . . Intercept . | . . . . . . . . . . . . . . . . . Construction Impeded 3 | . . . . . . . 2 . 1 . . . . . . . Haulers Reinforced . | . . . . . . . . . . . . . . . . . Stealth | -11 -10 -10 -9 -9 -9 -8 -8 -8 -7 -7 -7 -7 -6 -6 -6 -6 --------- Run | Scr Mat Min Mat Min Exi Min Mat Gar Fac Low Low Dat Pro Fac Was Fac Distress Signals 9 | . 1 . 4 . . . 2 . . . . . . 1 . 1 Communications Jammed . | . . . . . . . . . . . . . . . . . Distress Signals . | . . . . . . . . . . . . . . . . . Times Spotted 325 | . 16 5 32 12 . 18 62 31 96 10 11 . 9 5 6 12 Peak Tracking Total 11 | . 5 3 4 4 . 4 6 6 11 4 4 . 4 5 3 5 Tactical Retreats 7 | . . . 1 . . . 1 . 2 . . . . . 1 2 Traps | -11 -10 -10 -9 -9 -9 -8 -8 -8 -7 -7 -7 -7 -6 -6 -6 -6 ------- Run | Scr Mat Min Mat Min Exi Min Mat Gar Fac Low Low Dat Pro Fac Was Fac Traps Triggered 13 | . 2 . . . . . 1 7 1 . . . . 1 . 1 Indirectly . | . . . . . . . . . . . . . . . . . Trap Hack Attempts . | . . . . . . . . . . . . . . . . . Triggered . | . . . . . . . . . . . . . . . . . Disarmed . | . . . . . . . . . . . . . . . . . Reprogrammed . | . . . . . . . . . . . . . . . . . Reused . | . . . . . . . . . . . . . . . . . Traps Extracted . | . . . . . . . . . . . . . . . . . Installed . | . . . . . . . . . . . . . . . . . Triggered 3 | . . . . . . . . . . . 3 . . . . . Machines | -11 -10 -10 -9 -9 -9 -8 -8 -8 -7 -7 -7 -7 -6 -6 -6 -6 ---------- Run | Scr Mat Min Mat Min Exi Min Mat Gar Fac Low Low Dat Pro Fac Was Fac Machines Disabled 46 | . . . 1 . . 3 11 1 28 . 2 . . . . . Max in Single Turn 10 | . . . 1 . . 1 2 1 10 . 1 . . . . . Garrison Relay 1 | . . . . . . . . 1 . . . . . . . . Machines Sabotaged . | . . . . . . . . . . . . . . . . . Garrisons Compromised . | . . . . . . . . . . . . . . . . . Overloaded Fab Kills . | . . . . . . . . . . . . . . . . . Fab Network Shutdowns . | . . . . . . . . . . . . . . . . . Hacking | -11 -10 -10 -9 -9 -9 -8 -8 -8 -7 -7 -7 -7 -6 -6 -6 -6 --------- Run | Scr Mat Min Mat Min Exi Min Mat Gar Fac Low Low Dat Pro Fac Was Fac Machines Accessed 56 | . 8 . 17 . 2 . 12 . 3 . 1 4 . . . 9 Terminals 30 | . 6 . 12 . . . 7 . 2 . . . . . . 3 Fabricators 2 | . . . . . . . . . . . . . . . . 2 Repair Stations 3 | . . . 1 . . . 1 . . . . . . . . 1 Recycling Units 7 | . 2 . 2 . . . 2 . . . . . . . . 1 Scanalyzers 5 | . . . 2 . . . 1 . . . . . . . . 2 Garrison Access 2 | . . . . . . . 1 . 1 . . . . . . . Total Hacks 247 | . 33 . 69 . 24 . 46 . 16 . 1 30 . . . 28 Successful 177 | . 18 . 50 . 24 . 35 . 8 . 1 30 . . . 11 Failed 68 | . 15 . 18 . . . 10 . 8 . . . . . . 17 Catastrophic 9 | . 2 . 1 . . . 2 . 2 . . . . . . 2 Database Lockouts 3 | . . . 2 . . . 1 . . . . . . . . . Manual 102 | . 23 . 35 . 1 . 30 . 11 . . . . . . 2 Terminals 134 | . 29 . 50 . . . 35 . 13 . . . . . . 7 Fabricators 5 | . . . . . . . . . . . . . . . . 5 Repair Stations 7 | . . . 2 . . . 2 . . . . . . . . 3 Recycling Units 21 | . 4 . 8 . . . 5 . . . . . . . . 4 Scanalyzers 20 | . . . 9 . . . 2 . . . . . . . . 9 Garrison Access 5 | . . . . . . . 2 . 3 . . . . . . . Terminal Hacks 110 | . 10 . 22 . 24 . 16 . 6 . 1 30 . . . 1 Record 34 | . . . . . 23 . . . . . . 11 . . . . Part Schematic 12 | . . . . . . . 3 . . . . 9 . . . . Robot Schematic 8 | . . . 1 . . . . . . . . 7 . . . . Robot Analysis 12 | . 7 . 1 . . . 4 . . . . . . . . . Prototype ID Bank 9 | . . . 3 . . . 1 . 1 . . 3 . . . 1 Open Door 1 | . . . . . . . . . . . 1 . . . . . Branch Access Points 2 | . . . 1 . . . 1 . . . . . . . . . Terminal Index 3 | . . . . . . . 1 . 2 . . . . . . . Fabricator Index 1 | . . . . . . . 1 . . . . . . . . . Garrison Index 1 | . . . . . . . 1 . . . . . . . . . Alert Level 5 | . . . 4 . . . 1 . . . . . . . . . Unreport Threat 6 | . . . 4 . . . 1 . 1 . . . . . . . Locate Traps 6 | . 2 . 2 . . . 1 . 1 . . . . . . . Surveillance Status 1 | . . . 1 . . . . . . . . . . . . . Hauler Manifests 2 | . 1 . 1 . . . . . . . . . . . . . Registered Components 1 | . . . 1 . . . . . . . . . . . . . Zone Layout 5 | . . . 3 . . . 1 . 1 . . . . . . . EX-Prototype ID Bank 1 | . . . . . 1 . . . . . . . . . . . Fabricator Hacks 1 | . . . . . . . . . . . . . . . . 1 Load Schematic 1 | . . . . . . . . . . . . . . . . 1 Repair Station Hacks 6 | . . . 2 . . . 2 . . . . . . . . 2 Scan Component 3 | . . . 1 . . . 1 . . . . . . . . 1 Repair 3 | . . . 1 . . . 1 . . . . . . . . 1 Recycling Unit Hacks 8 | . 2 . 3 . . . 2 . . . . . . . . 1 Report Inventory 6 | . 2 . 2 . . . 2 . . . . . . . . . Retrieve Components 2 | . . . 1 . . . . . . . . . . . . 1 Scanalyzer 17 | . . . 9 . . . 2 . . . . . . . . 6 Insert Component 8 | . . . 4 . . . 1 . . . . . . . . 3 Analyze 9 | . . . 5 . . . 1 . . . . . . . . 3 Garrison Access Hacks 2 | . . . . . . . 2 . . . . . . . . . Unlock Access 1 | . . . . . . . 1 . . . . . . . . . Coupler Status 1 | . . . . . . . 1 . . . . . . . . . Unauthorized Hacks 33 | . 6 . 14 . . . 11 . 2 . . . . . . . Terminals 25 | . 4 . 12 . . . 8 . 1 . . . . . . . Track 3 | . . . 2 . . . 1 . . . . . . . . . Assimilate 2 | . 1 . . . . . 1 . . . . . . . . . Botnet 17 | . 3 . 8 . . . 5 . 1 . . . . . . . Operators 3 | . . . 2 . . . 1 . . . . . . . . . Fabricators . | . . . . . . . . . . . . . . . . . Repair Stations . | . . . . . . . . . . . . . . . . . Recycling Units 7 | . 2 . 2 . . . 3 . . . . . . . . . Reject 5 | . 2 . 1 . . . 2 . . . . . . . . . Mask 2 | . . . 1 . . . 1 . . . . . . . . . Scanalyzers . | . . . . . . . . . . . . . . . . . Garrison Access 1 | . . . . . . . . . 1 . . . . . . . Watchers 1 | . . . . . . . . . 1 . . . . . . . Data Cores Recovered . | . . . . . . . . . . . . . . . . . Used . | . . . . . . . . . . . . . . . . . Hacking Detections 45 | . 7 . 17 . . . 11 . 3 . . . . . . 7 Full Trace Events 7 | . 2 . 1 . . . 1 . 1 . . . . . . 2 Feedback Events 1 | . . . 1 . . . . . . . . . . . . . Corruption 1 | . . . 1 . . . . . . . . . . . . . Feedback Blocked . | . . . . . . . . . . . . . . . . . Robot Schematics Acquired 8 | . . . 1 . . . . . . . . 7 . . . . Robots Built . | . . . . . . . . . . . . . . . . . Matter . | . . . . . . . . . . . . . . . . . Time . | . . . . . . . . . . . . . . . . . Total Robot Build Rating . | . . . . . . . . . . . . . . . . . Part Schematics Acquired 20 | . . . 4 . . . 4 . . . . 9 . . . 3 Parts Built . | . . . . . . . . . . . . . . . . . Matter . | . . . . . . . . . . . . . . . . . Time . | . . . . . . . . . . . . . . . . . Total Part Build Rating . | . . . . . . . . . . . . . . . . . Parts Repaired 3 | . . . 1 . . . 1 . . . . . . . . 1 Time 95 | . . . 32 . . . 32 . . . . . . . . 31 Parts Recycled . | . . . . . . . . . . . . . . . . . Recycled Matter . | . . . . . . . . . . . . . . . . . Retrieved Matter . | . . . . . . . . . . . . . . . . . Retrieved Components 2 | . . . 2 . . . . . . . . . . . . . Parts Scanalyzed 8 | . . . 4 . . . 1 . . . . . . . . 3 Part Schematics Acquired 8 | . . . 4 . . . 1 . . . . . . . . 3 Parts Damaged 1 | . . . . . . . . . . . . . . . . 1 Bothacking | -11 -10 -10 -9 -9 -9 -8 -8 -8 -7 -7 -7 -7 -6 -6 -6 -6 ------------ Run | Scr Mat Min Mat Min Exi Min Mat Gar Fac Low Low Dat Pro Fac Was Fac Used RIF Installer 1 | . . . . . . . . 1 . . . . . . . . Robots Hacked 1 | . . . . . . . . . . . 1 . . . . . Non-combat . | . . . . . . . . . . . . . . . . . Combat 1 | . . . . . . . . . . . 1 . . . . . Robot Hacks Applied 1 | . . . . . . . . . . . 1 . . . . . parse_system 1 | . . . . . . . . . . . 1 . . . . . Relay Couplers Released 3 | . . . . . . . . 2 1 . . . . . . . Machine Destruction 2 | . . . . . . . . 2 . . . . . . . . Programmers 1 | . . . . . . . . . 1 . . . . . . . Robots Rewired . | . . . . . . . . . . . . . . . . . Allies Hacked . | . . . . . . . . . . . . . . . . . Hacks Repelled . | . . . . . . . . . . . . . . . . . Allies | -11 -10 -10 -9 -9 -9 -8 -8 -8 -7 -7 -7 -7 -6 -6 -6 -6 -------- Run | Scr Mat Min Mat Min Exi Min Mat Gar Fac Low Low Dat Pro Fac Was Fac Total Allies 7 | . 1 3 . 1 . . . . . . . . 1 . 1 . Largest Group 3 | . 1 3 3 2 1 1 . . . . . . 1 1 1 . Highest-Rated Group 94 | . 10 40 40 47 16 16 . . . . . . 94 94 94 . Highest-Rated Ally 94 | . 10 16 16 31 16 16 . . . . . . 94 94 94 . Total Orders 4 | . 2 2 . . . . . . . . . . . . . . GOTO 3 | . 1 2 . . . . . . . . . . . . . . FOLLOW 1 | . 1 . . . . . . . . . . . . . . . Ally Attacks 103 | . . . 33 . . 7 . . . . . . 24 8 31 . Total Damage 2300 | . . . 339 . . 95 . . . . . . 787 238 841 . Kills 26 | . . . 11 . . 1 . . . . . . 9 3 2 . Allies Corrupted . | . . . . . . . . . . . . . . . . . Allies Melted . | . . . . . . . . . . . . . . . . . Intel | -11 -10 -10 -9 -9 -9 -8 -8 -8 -7 -7 -7 -7 -6 -6 -6 -6 ------- Run | Scr Mat Min Mat Min Exi Min Mat Gar Fac Low Low Dat Pro Fac Was Fac Robot Analysis Total 12 | . 7 . 1 . . . 4 . . . . . . . . . Derelict Logs Recovered 9 | . . 2 . 3 . . . . . . 2 . 2 . . . Drone Launches . | . . . . . . . . . . . . . . . . . Drone Recoveries . | . . . . . . . . . . . . . . . . . Exploration | -11 -10 -10 -9 -9 -9 -8 -8 -8 -7 -7 -7 -7 -6 -6 -6 -6 ------------- Run | Scr Mat Min Mat Min Exi Min Mat Gar Fac Low Low Dat Pro Fac Was Fac Turns Passed 7356 | 38 375 283 878 425 495 381 945 463 820 232 378 51 378 54 263 897 Spaces Moved 9425 | 45 525 548 1257 570 667 585 1341 578 1034 396 635 107 520 54 159 404 Core 21 | 21 . . . . . . . . . . . . . . . . Treads 473 | . . . . . . . . . . . . . . . 69 404 Legs . | . . . . . . . . . . . . . . . . . Wheels 40 | 24 16 . . . . . . . . . . . . . . . Hover 7181 | . . . 604 570 667 585 1341 578 1034 396 635 107 520 54 90 . Flight 1710 | . 509 548 653 . . . . . . . . . . . . . Fastest Speed 34 | 50 37 37 34 48 48 48 48 48 48 48 48 48 48 48 48 160 Average Speed 53 | 66 38 37 42 48 48 48 48 48 48 48 48 48 53 48 135 179 Slowest Speed 236 | 80 80 37 117 48 48 48 48 48 112 48 48 48 108 48 236 180 Overloaded Moves . | . . . . . . . . . . . . . . . . . Propulsion Burnouts . | . . . . . . . . . . . . . . . . . Robots Hopped 8 | . 4 . 4 . . . . . . . . . . . . . Cave-ins Triggered . | . . . . . . . . . . . . . . . . . Exploration Rate (%) 68 | 4 84 95 92 98 92 98 93 87 29 61 86 76 72 2 78 12 Regions Visited 16 Branch Regions 8 Pre-discovered Areas 5 | . . 1 . 1 1 . . . . . . 1 1 . . . Known Exits Taken 12 | . 1 1 1 1 1 1 1 . 1 1 1 1 1 . . . Unknown Exits Taken 1 | 1 . . . . . . . . . . . . . . . . Scrap Searched 7 | . . 1 . 2 . 1 . . . . 3 . . . . . Spaces Dug 11 | . . . . . . . 8 . 3 . . . . . . . Terrain Destroyed 351 | . 3 . 15 42 . 47 145 . 91 2 6 . . . . . Melee . | . . . . . . . . . . . . . . . . . Projectile 196 | . . . . . . 47 116 . 25 2 6 . . . . . AOE 155 | . 3 . 15 42 . . 29 . 66 . . . . . . . Actions | -11 -10 -10 -9 -9 -9 -8 -8 -8 -7 -7 -7 -7 -6 -6 -6 -6 --------- Run | Scr Mat Min Mat Min Exi Min Mat Gar Fac Low Low Dat Pro Fac Was Fac Total 11351 | 51 622 606 1462 682 843 684 1644 762 1357 436 707 106 602 74 193 520 Wait 762 | . 36 28 82 70 162 48 95 22 90 1 16 . 55 6 6 45 Move 9393 | 44 516 547 1248 569 666 584 1340 576 1033 395 634 106 519 54 158 404 Hop 8 | . 4 . 4 . . . . . . . . . . . . . Pick Up 31 | 2 3 . 7 . 2 . 7 . 3 . 3 . 1 . 3 . Fast Attach 80 | 4 6 3 12 4 3 1 6 . 7 1 6 . 4 . 9 14 Attach 9 | 1 . 1 2 . . . 3 . 1 . . . . . 1 . Detach 4 | . . . . . . . 1 . . . . . 1 . . 2 Swap 22 | . . 2 3 1 1 3 5 . 3 . 1 . 2 . 1 . Drop 84 | . 6 4 11 4 9 2 12 . 10 . 8 . 2 . 5 11 Fire 620 | . 40 12 73 19 . 37 136 67 147 25 33 . . . 4 27 Melee 43 | . . . . 3 . . . . . . . . 10 7 6 17 Ram 1 | . . . . . . . . . . . 1 . . . . . Kick . | . . . . . . . . . . . . . . . . . Crush . | . . . . . . . . . . . . . . . . . Escape Stasis 89 | . . . . . . . . 78 11 . . . . . . . Rewire 1 | . . . . . . . . 1 . . . . . . . . Trap . | . . . . . . . . . . . . . . . . . Miscellaneous 204 | . 11 9 20 12 . 9 39 18 52 14 5 . 8 7 . . Route ------- -11/Scrapyard -10/Materials (discovered 4 exits: *Mat x3 / *Min) -10/Mines (discovered 2 exits: *Mat x2) -9/Materials (discovered 7 exits: *Mat x3 / *Min x2 / *Sto x2) -9/Mines (discovered 3 exits: *Mat x2 / *Exi) -9/Exiles (discovered 2 exits: *Min x2) -8/Mines (discovered 2 exits: *Mat x2) -8/Materials (discovered 4 exits: *Fac x3 / Gar) -8/Garrison (discovered 3 exits: *Fac x3) -7/Factory (discovered 2 exits: *Fac / *Low) -7/Lower Caves -7/Lower Caves -7/Data Miner -6/Proximity Caves -6/Factory -6/Waste -6/Factory History --------- Turn | Location | Event 2 | -11/Scrapyard | Upgraded with Propulsion slot (x1) 2 | -11/Scrapyard | Upgraded with Utility slot (x1) 2 | -11/Scrapyard | Upgraded with Weapon slot (x1) 6 | -11/Scrapyard | Discovered new exit (range 16) 39 | -11/Scrapyard | Entered Materials 202 | -10/Materials | Discovered new exit (range 14) 207 | -10/Materials | Identified exit to Materials 291 | -10/Materials | Discovered exit to Materials (range 18) 314 | -10/Materials | Build established: Mutant 367 | -10/Materials | Discovered exit to Materials (range 9) 407 | -10/Materials | Discovered new exit (range 7) 411 | -10/Materials | Identified exit to Mines 414 | -10/Materials | Entered Mines 414 | -10/Mines | Accompanied by 1 ally 416 | -10/Mines | Reached level 2 440 | -10/Mines | Upgraded with Utility slot (x1) 440 | -10/Mines | Upgraded with Weapon slot (x1) 488 | -10/Mines | Discovered exit to Materials (range 11) 500 | -10/Mines | Learned Materials interactive machine intel 611 | -10/Mines | Learned Materials stockpile data 615 | -10/Mines | Assisted by bots powering up and referring to "LRC-V3" 642 | -10/Mines | Discovered exit to Materials (range 14) 655 | -10/Mines | Learned location of Storage (-9) 697 | -10/Mines | Entered Materials 697 | -9/Materials | Accompanied by 3 allies 699 | -9/Materials | Loaded intel: 18 interactive machine locations 699 | -9/Materials | Reached level 3 699 | -9/Materials | Upgraded with Propulsion slot (x1) 699 | -9/Materials | Upgraded with Utility slot (x1) 739 | -9/Materials | Build established: Scavenger-Gunner 753 | -9/Materials | Reached level 4 757 | -9/Materials | Discovered new exit (range 5) 781 | -9/Materials | Identified exit to Storage 807 | -9/Materials | Upgraded with Utility slot (x1) 825 | -9/Materials | Identified exit to Mines 859 | -9/Materials | Central database locked down 954 | -9/Materials | Discovered new exit (range 17) 1103 | -9/Materials | Discovered new exit (range 13) 1130 | -9/Materials | Identified exit to Materials 1194 | -9/Materials | Repaired Hrd. Light Armor Plating 1225 | -9/Materials | Reached level 5 1404 | -9/Materials | Discovered exit to Materials (range 11) 1414 | -9/Materials | Reached level 6 1420 | -9/Materials | Upgraded with Power slot (x1) 1420 | -9/Materials | Upgraded with Propulsion slot (x1) 1420 | -9/Materials | Upgraded with Weapon slot (x1) 1480 | -9/Materials | Core integrity fell below 50% 1575 | -9/Materials | Entered Mines 1575 | -9/Mines | Accompanied by 1 ally 1606 | -9/Mines | Reached level 7 1642 | -9/Mines | Discovered exit to Materials (range 9) 1643 | -9/Mines | Discovered exit to Materials (range 10) 1648 | -9/Mines | Received a Mining Laser from a helpful Derelict 1666 | -9/Mines | Upgraded with Utility slot (x1) 1686 | -9/Mines | Learned Materials stockpile data 1734 | -9/Mines | Learned Materials stockpile data 1818 | -9/Mines | Learned location of Zion (-6) 1946 | -9/Mines | Deemed a non-threat by the Exiles lab entrance 1947 | -9/Mines | Discovered new exit (range 5) 1948 | -9/Mines | Identified exit to Exiles 2000 | -9/Mines | Entered Exiles 2000 | -9/Exiles | Accompanied by 1 ally 2002 | -9/Exiles | Reached level 8 2007 | -9/Exiles | Discovered new exit (range 15) 2013 | -9/Exiles | Identified exit to Mines 2024 | -9/Exiles | Met 8R-AWN 2031 | -9/Exiles | Met EX-HEX 2073 | -9/Exiles | Met EX-DEC 2087 | -9/Exiles | Build established: Scavenger-Mutant 2088 | -9/Exiles | Visited The Gauntlet 2263 | -9/Exiles | Met EX-BIN 2269 | -9/Exiles | Aligned with FarCom system 2270 | -9/Exiles | Given EX-Vault access code 2281 | -9/Exiles | Opened EX-Vault 2287 | -9/Exiles | Found XL Autogun Array 2296 | -9/Exiles | Found Superbattery 2322 | -9/Exiles | Found AWS/Autocannon 2336 | -9/Exiles | Warned to stay clear of 0b10 Research branches 2480 | -9/Exiles | Discovered exit to Mines (range 11) 2495 | -9/Exiles | Stole three prototypes: XL Autogun Array, Superbattery, AWS/Autocannon 2495 | -9/Exiles | Entered Mines 2495 | -8/Mines | Accompanied by 1 ally 2554 | -8/Mines | Reached level 9 2558 | -8/Mines | Upgraded with Utility slot (x1) 2597 | -8/Mines | Discovered exit to Materials (range 5) 2627 | -8/Mines | Build established: Scavenger-Tank 2667 | -8/Mines | Discovered exit to Materials (range 8) 2821 | -8/Mines | Reached level 10 2876 | -8/Mines | Entered Materials 2878 | -8/Materials | Reached level 11 2878 | -8/Materials | Upgraded with Utility slot (x1) 2931 | -8/Materials | Garrison activated, responded to threat 2979 | -8/Materials | Repaired Hrd. Light Armor Plating 3137 | -8/Materials | Reached level 12 3161 | -8/Materials | Discovered new exit (range 9) 3170 | -8/Materials | Destroyed 8 combat bots 3276 | -8/Materials | First assault squad dispatched 3417 | -8/Materials | Reached level 13 3424 | -8/Materials | Upgraded with Utility slot (x1) 3448 | -8/Materials | Garrison activated, responded to threat 3514 | -8/Materials | Discovered new exit (range 9) 3536 | -8/Materials | Identified exit to Factory 3663 | -8/Materials | Discovered exit to Factory (range 8) 3792 | -8/Materials | Central database locked down 3820 | -8/Materials | Identified exit to Garrison 3821 | -8/Materials | Entered Garrison 3837 | -8/Garrison | Garrison Relay disabled 3842 | -8/Garrison | Triggered checkpoint 3886 | -8/Garrison | Triggered checkpoint 3898 | -8/Garrison | Reached level 14 3919 | -8/Garrison | Destroyed 8 combat bots 3928 | -8/Garrison | Triggered checkpoint 3942 | -8/Garrison | Triggered checkpoint 3981 | -8/Garrison | Destroyed 10 combat bots 4006 | -8/Garrison | Triggered checkpoint 4061 | -8/Garrison | Discovered exit to Factory (range 15) 4107 | -8/Garrison | Discovered exit to Factory (range 15) 4117 | -8/Garrison | Installed Relay Interface Framework 4154 | -8/Garrison | Triggered checkpoint 4212 | -8/Garrison | Triggered checkpoint 4277 | -8/Garrison | Discovered exit to Factory (range 13) 4284 | -8/Garrison | Entered Factory 4286 | -7/Factory | FarCom data flow suspended 4286 | -7/Factory | Reached level 15 4292 | -7/Factory | Upgraded with Utility slot (x1) 4387 | -7/Factory | Discovered new exit (range 5) 4392 | -7/Factory | Identified exit to Factory 4507 | -7/Factory | Garrison activated, responded to threat 4568 | -7/Factory | Reached level 16 4572 | -7/Factory | High security lockdown imminent 4579 | -7/Factory | Build established: Scavenger-Gunner 4621 | -7/Factory | Upgraded with Weapon slot (x1) 4652 | -7/Factory | High security lockdown engaged 4724 | -7/Factory | Discovered new exit (range 12) 4841 | -7/Factory | Destroyed 9 combat bots 4885 | -7/Factory | Reached level 17 4915 | -7/Factory | Destroyed 13 combat bots 4965 | -7/Factory | Destroyed 7 combat bots 4992 | -7/Factory | Garrison activated, responded to threat 5038 | -7/Factory | Destroyed 14 combat bots 5103 | -7/Factory | Identified exit to Lower Caves 5104 | -7/Factory | Entered Lower Caves 5277 | -7/Lower Caves | Discovered new exit (range 13) 5282 | -7/Lower Caves | Identified exit to Lower Caves 5304 | -7/Lower Caves | Spotted 82-FO5(f) 5305 | -7/Lower Caves | Spotted MT-PKU(f) 5306 | -7/Lower Caves | Encountered a Master Thief 5306 | -7/Lower Caves | Encountered a Master Thief 5308 | -7/Lower Caves | Destroyed 82-FO5(f) 5315 | -7/Lower Caves | Destroyed MT-PKU(f) 5322 | -7/Lower Caves | Spotted O5-62U(f) 5323 | -7/Lower Caves | Encountered a Master Thief 5323 | -7/Lower Caves | Superbattery stolen by Master Thief 5324 | -7/Lower Caves | Destroyed O5-62U(f) 5336 | -7/Lower Caves | Entered another Lower Caves area 5343 | -7/Lower Caves | Attacked by a delusional Derelict stockpiling parts 5375 | -7/Lower Caves | Lrn. Tractor Beam stolen by Master Thief 5500 | -7/Lower Caves | Found Prototype Device 5500 | -7/Lower Caves | Identified Heart of Steel 5543 | -7/Lower Caves | Spotted B-75 Beast 5549 | -7/Lower Caves | Destroyed B-75 Beast 5571 | -7/Lower Caves | Identified exit to Data Miner 5578 | -7/Lower Caves | Spotted 1D-O73(f) 5580 | -7/Lower Caves | Encountered a Master Thief 5584 | -7/Lower Caves | Destroyed 1D-O73(f) 5602 | -7/Lower Caves | Encountered a Warlord checkpoint 5695 | -7/Lower Caves | Spotted 0M-2SY(f) 5696 | -7/Lower Caves | Encountered a Master Thief 5698 | -7/Lower Caves | XL Autogun Array stolen by Master Thief 5701 | -7/Lower Caves | Spotted LV-YEI(f) 5702 | -7/Lower Caves | Encountered a Master Thief 5714 | -7/Lower Caves | Entered Data Miner 5714 | -7/Data Miner | Discovered new exit (range 6) 5716 | -7/Data Miner | Reached level 18 5718 | -7/Data Miner | Identified exit to Proximity Caves 5724 | -7/Data Miner | Met Data Miner 5738 | -7/Data Miner | Learned location of Section 7 (-2) 5738 | -7/Data Miner | Acquired the access code to Warlord's prototype stash 5747 | -7/Data Miner | Received God Mode back door access code from Data Miner 5765 | -7/Data Miner | Entered Proximity Caves 5878 | -6/Proximity Caves | Spotted K8-UTQ(f) 5879 | -6/Proximity Caves | Encountered a Master Thief 5882 | -6/Proximity Caves | Escorted by Enhanced Grunt 5882 | -6/Proximity Caves | Spotted 3X-ELV(f) 5883 | -6/Proximity Caves | Encountered a Master Thief 5884 | -6/Proximity Caves | Allies destroyed 3X-ELV(f) 5886 | -6/Proximity Caves | Superbattery stolen by Master Thief 6133 | -6/Proximity Caves | Discovered exit to Factory (range 8) 6143 | -6/Proximity Caves | Entered Factory 6143 | -6/Factory | Accompanied by 1 ally 6144 | -6/Factory | Identified exit to Lower Caves 6145 | -6/Factory | Reached level 19 6147 | -6/Factory | Upgraded with Utility slot (x1) 6182 | -6/Factory | Build established: Scavenger-Gladiator 6197 | -6/Factory | Sucked down chute 6197 | -6/Factory | Entered Waste 6198 | -6/Waste | Met a frightened Derelict 6212 | -6/Waste | EMP discharged 6216 | -6/Waste | Spotted C-40 Crusher 6216 | -6/Waste | Spotted C-40 Crusher 6235 | -6/Waste | Spotted C-40 Crusher 6239 | -6/Waste | Crushed by Compactor (1 part destroyed) 6242 | -6/Waste | Crushed by Compactor (1 part destroyed, 1 dropped) 6249 | -6/Waste | Crushed by Compactor (1 part destroyed) 6251 | -6/Waste | Crushed by Compactor (0 parts destroyed, 2 dropped) 6252 | -6/Waste | Crushed by Compactor (1 part destroyed, 1 dropped) 6255 | -6/Waste | 1 allies followed down the chute 6263 | -6/Waste | Spotted C-40 Crusher 6269 | -6/Waste | Spotted C-40 Crusher 6283 | -6/Waste | Lost 4 parts (1p2u1w) 6293 | -6/Waste | Allies destroyed C-40 Crusher 6306 | -6/Waste | Found Damper Plating 6312 | -6/Waste | EMP discharged 6319 | -6/Waste | Crushed by Compactor (1 part destroyed) 6319 | -6/Waste | Destroyed C-40 Crusher 6336 | -6/Waste | Found Damper Plating 6344 | -6/Waste | Spotted C-40 Crusher 6412 | -6/Waste | EMP discharged 6442 | -6/Waste | Discovered new exit (range 11) 6458 | -6/Waste | Identified exit to Factory 6460 | -6/Waste | Entered Factory 6756 | -6/Factory | Repaired Corruption Screen 6796 | -6/Factory | Core integrity fell below 50% 6852 | -6/Factory | Core integrity fell below 20% 6885 | -6/Factory | System corruption reached 10% 7190 | -6/Factory | Incoming investigation squad redirected 7269 | -6/Factory | Incoming investigation squad redirected 7357 | -6/Factory | Destroyed by exploding Nuclear Reactor Last Messages --------------- 07255_ System corrupted: Matter fused (-10). 07269_ ALERT: Higher priority target reported, redirecting investigation. 07275_ Connecting with Terminal... >>Prototypes Downloading prototype IDs... Exp. Sensor Array Exp. Propulsion Shielding Enh. Coil Gun 07276_ System corrupted: Matter fused (-9). 07294_ ALERT: Rogue bot located, Programmers report to Factory Zone 5Y. 07316_ System corrupted: Heat flow error (+205). 07328_ System corrupted: Cld. Particle Cannon targeting data glitched. 07331_ G-50 Soldier destroyed. 07336_ System corrupted: Component data lost. 07341_ G-50 Soldier destroyed. 07347_ System corrupted: Cld. Particle Cannon targeting data glitched. 07357_ R-10 Processor collects Hvy. Laser. 07357_ Triggered Heavy Explosive Trap. 07357_ An explosion rips through the floor. 07357_ Nuclear Reactor explodes. Map ----- +----------------------------------------------------+ | ?????????????????????????????????????????? | | ?????????????????????????????????????????? | | ?????????????????????????????????????????? | | ?????????????????????????????????????????? | | ?????????????????????????????????????????? | | ?????????????????????????????????????????? | | ?????????????????????????????????????????? | | ???????????????###############???????????? | | ???????????????# ???????????? | | ???????????????# """ """ """???????????? | | ???????????????# """ """ """ ??????????? | | ???????????????#[ """ """ """ #?????????? | | ???????????????# #?????????? | | ???????????????# """ """ ??????????? | | ???##########??# " " """ """ #?????????? | | ???# ! #??# "Y" """ """ #?????????? | | ???# """ #??# """ #?????????? | | ???# [ """ #??# ! #?????????? | | ???+ """ #??#####+########+###????????? | | ???# "" ####### ! #????????? | | ???# "F + +????????? | | ???# """ ####### #????????? | | ???# """ * #?????# ### #????????? | | ???# #?????# # #????????? | | ???#####+####?????# # +????????? | | ???????# #????????# # @ #????????? | | ???????# #????????# # !! #????????? | | ??????# #######??# # !! #????????? | | ??????# #?## ### !! #????????? | | ?????# ### #?# ##! #????????? | | ???### #?# ### T" ##%* #????????? | | ??# #?# " ## #????????? | | ### #?##### ##=!* #????????? | | #?????# ##%=% ????????? | | # #?????######## ########???????? | | ??# #?????????????R???????????????? | | #### ##???##????####/####???????????? | | !## # """"""?"""" !#???????????? | | ## + """"T?""" #???????????? | | + # o +???????????? | | # # """ """ """ [[[ #???????????? | | ### #?""" """ """ [[[ #???????????? | | #??"" ""? """ [[[ #???????????? | | ####### #??? ??? #???????????? | | # ^ #??? ? ????? ?????????????? | | """ # #????##???????#+#??????????????? | | """ # #???#######?### ###########????? | | """ # ##### #?# # #????? | | + ### "" # """#????? | | # T" + """#????? | +----------------------------------------------------+ Best States ------------- Heat Dissipation 77 Coolant Potential 65 Energy Generation 37 Energy Capacity 2220 Matter Stores 400 Matter Capacity 400 Sight Range 18 Robot Scan Range 38 Terrain Scan Range 14 Terrain Scan Density 10 Base Temperature (-) 150 Corruption Prevention 20 Armor Coverage 1200 Resistance: TH 10 Resistance: EM 90 Melee Speed Boost 30 Evasion (%) 63 Targeting Accuracy 8 Recoil Reduction 3 Offensive Hacking 10 Defensive Hacking 10 Item Schematics ----------------- Imp. Hover Unit | -9/Materials | Scanalyzed Hardlight Generator | -9/Materials | Scanalyzed Melee Analysis Suite | -9/Materials | Scanalyzed Shield Generator | -9/Materials | Scanalyzed Imp. Light Armor Plating | -8/Materials | Scanalyzed Hacking Suite | -8/Materials | Hacked System Shield | -8/Materials | Hacked Airjet | -8/Materials | Hacked Combat Drone Bay | -7/Data Miner | Free Lgt. Regenerative Plating | -7/Data Miner | Free Exp. Flexi-carbon Leg | -7/Data Miner | Free Exp. Cesium-ion Thruster | -7/Data Miner | Free Triangulator | -7/Data Miner | Free Exp. ECM Suite | -7/Data Miner | Free Cloaking Device | -7/Data Miner | Free Mni. Smartbomb Launcher | -7/Data Miner | Free Plasma Sword | -7/Data Miner | Free Gravmag System | -6/Factory | Scanalyzed Imp. Cooling System | -6/Factory | Scanalyzed Mak. Sensor Array | -6/Factory | Scanalyzed Robot Schematics ------------------ O-16 Technician | -9/Materials | Hacked S-27 Virus | -7/Data Miner | Free G-50 Soldier | -7/Data Miner | Free G-67 Veteran | -7/Data Miner | Free X-72 Disruptor | -7/Data Miner | Free P-70 Sage | -7/Data Miner | Free I-36 Angel | -7/Data Miner | Free I-47 Archangel | -7/Data Miner | Free Fabricated ------------ Nothing Alien Tech Used ----------------- None Achievements -------------- None Challenges ------------ None RPGLIKE | -11 -10 -10 -9 -9 -9 -8 -8 -8 -7 -7 -7 -7 -6 -6 -6 -6 --------- Run | Scr Mat Min Mat Min Exi Min Mat Gar Fac Low Low Dat Pro Fac Was Fac Levels Raised 18 | . . 1 4 1 1 2 3 1 3 . . 1 . 1 . . XP Earned 30813 | 3000 1374 1100 5946 1950 304 2934 5238 1282 4648 327 284 141 1021 895 71 298 XP Spent 29950 | 2350 . 1700 6120 1700 750 2925 5450 . 5175 . . . . 3700 . 80 Upgrades 43 | 6 . 3 8 1 1 6 6 . 7 . . . . 3 . 2 Power Slot 1 | . . . 1 . . . . . . . . . . . . . Propulsion Slot 3 | 1 . . 2 . . . . . . . . . . . . . Utility Slot 10 | 1 . 1 2 1 . 1 2 . 1 . . . . 1 . . Weapon Slot 4 | 1 . 1 1 . . . . . 1 . . . . . . . Core Integrity 3 | . . . . . . . 1 . . . . . . . . 2 Heat Dissipation 4 | . . . 2 . . 2 . . . . . . . . . . Matter Storage 2 | . . . . . . . 2 . . . . . . . . . Mass Support 2 | 1 . . . . . 1 . . . . . . . . . . Inventory Capacity 3 | 2 . . . . 1 . . . . . . . . . . . Sight Range 1 | . . 1 . . . . . . . . . . . . . . Sensor Range 8 | . . . . . . 2 1 . 5 . . . . . . . Melee Accuracy 2 | . . . . . . . . . . . . . . 2 . . Protomatter Created 2964 | . 71 60 180 105 . 20 868 352 1073 92 55 . . . . 88 Integrity Restored 3631 | . 213 180 364 258 . 159 645 248 910 257 55 . 174 168 . . Core 2694 | . 213 180 214 258 . 159 466 183 636 112 13 . 92 168 . . Parts 937 | . . . 150 . . . 179 65 274 145 42 . 82 . . . Protomatter Decayed 1959 | . . . 179 . . . 585 261 752 . 70 . 112 . . . Game ------ Seed ForceMakeshiftEngine Manual? 0 Play Time 02:40:14 Cumulative 73.2 hours Start 2020.07.16 @ 19:49:40 End 2020.07.17 @ 18:56:04 Sessions 5 Manual Loads 0 Difficulty Rogue Special Mode Winter2019/RPGLIKE Game No. 37 Rogue 37 Adventurer 0 Explorer 0 Win Type - Total 1 Types 0/0/0/1/0/0/0 Lore% 56 Gallery% 46 Achievement% 53 Wizard Run 0 Options --------- ASCII 0 Keyboard 0 Movement Numpad Keybinds 0 Fullscreen 1 Font 14/SmallcapsGlow Map View 84x54 Tactical HUD 1 Map Filters NONE Filters NONE Steam 1 RUN: 5d59deae-9f6d-4936-9cca-f926f2d833aa